Cogmind - Beta 16 @@@ ROGUE MODE // 2025.11.27 @ 04:33:24 Player: shapeshifter Result: Destroyed by Perun with Improved Arc Thrower Performance ------------- Evolutions (6) 3000 Regions Visited (17) 3400 Robots Destroyed (159) 795 Value Destroyed (5403) 5403 Prototype IDs (57) 1140 Alien Tech Used (1) 200 Bonus (5492) 5492 TOTAL SCORE: 19430 Bonus ------- High Alert Combat Kills 1119 Follower Combat Kills 3008 Registered with UFD 300 Met Optimus in HQ 500 Met Imprinter 300 Destroyed Z-Imprinter 1000 Met Zhirov 300 Friendly Fire -1035 Cogmind --------- Core Integrity 0/1150 Matter 268/300 Energy 50/100 System Corruption 12% Temperature Cool (0) Movement Core (125) Ox2 Location -4/Zhirov Parts ------- > --- POWER (2) -------- (None) > --- PROPULSION (8) --- (None) > --- UTILITY (7) ------ Zionite Metafield Generator Makeshift Terrain Scan Processor Experimental Weapon Shielding > --- WEAPON (2) ------- Companion Sword > --- INVENTORY (5) ---- Transdimensional Reconstructor Large Botcube PL-3XN's Ring of Power PL-3XN's Ring of Power Peak State ------------ > --- POWER ------------ Neutrino Core Micro Fission Core > --- PROPULSION ------- Centrium Wheel Antigrav System Antigrav System Antigrav System Combat Gravmag System Nuclear Pulse Thruster Nuclear Pulse Array > --- UTILITY ---------- Advanced Heat Sink Coolant Network Huge Storage Unit Zionite Metafield Generator Advanced Reaction Control System Improved Core Shielding > --- WEAPON ----------- Companion Sword > --- INVENTORY -------- Reinforced Fission Core Advanced Heat Sink Medium Storage Unit Advanced Energy Well Relay Coupler [Programmer] Relay Coupler [Programmer] Improved Component Analysis Suite KE Penetrator Enhanced Gauss Cannon Scatter Rocket Array Improved Remote Datajack CPS Tube Multitool RU-N14's Throwing Claymores Large Botcube PL-3XN's Ring of Power PL-3XN's Ring of Power [Rating: 122] Favorites ----------- Power Deuterium Engine Engine Deuterium Engine Power Core Fission Core Reactor Antimatter Reactor Propulsion Advanced Myomer Leg Treads Light Treads Leg Advanced Myomer Leg Wheel Overtuned Huge Scrapsphere Hover Unit Combat Gravmag System Flight Unit Nuclear Pulse Thruster Utility Cargo Storage Unit Device Improved Thermal Defense Suite Storage Cargo Storage Unit Processor Machine Analyzer Hackware Hacking Suite Protection Hardened Medium Armor Plating Weapon Companion Sword Energy Gun Improved Medium Laser Energy Cannon Advanced Beam Cannon Ballistic Gun Light Assault Rifle Ballistic Cannon Enhanced Gauss Cannon Launcher Scatter Rocket Array Special Weapon CPS Tube Slashing Weapon Companion Sword Special Melee Weapon Datajack Build | -11 -10 -10 -9 -9 -9 -9 -6 -6 -6 -6 -6 -5 -5 -4 -4 -4 -4 ------- Run | Yrd Mat Min Mat Sto Rec Scr Fac Low Low Zio Dee Pro Fac Fac Upp Upp Zhi Slots Evolved 12 | . . . 2 . . . 6 . . . . . 2 2 . . . Power 1 | . . . . . . . 1 . . . . . . . . . . Propulsion 6 | . . . . . . . 2 . . . . . 2 2 . . . Utility 5 | . . . 2 . . . 3 . . . . . . . . . . Weapon . | . . . . . . . . . . . . . . . . . . Parts Attached 188 | 7 5 3 19 18 3 11 24 4 . 5 24 3 18 36 . 5 3 Power 23 | 1 1 . 1 3 . . 3 2 . . 2 2 1 6 . . 1 Engine 10 | 1 . . 1 3 . . 2 2 . . . . . 1 . . . Core 9 | . 1 . . . . . 1 . . . 1 1 1 4 . . . Reactor 4 | . . . . . . . . . . . 1 1 . 1 . . 1 Propulsion 53 | 2 1 . 3 5 . 1 8 . . 1 3 . 10 16 . 2 1 Treads 14 | 2 1 . 3 5 . . 3 . . . . . . . . . . Leg 25 | . . . . . . . 5 . . 1 1 . 9 9 . . . Wheel 3 | . . . . . . 1 . . . . . . . 2 . . . Hover 7 | . . . . . . . . . . . 2 . 1 3 . . 1 Flight 4 | . . . . . . . . . . . . . . 2 . 2 . Utility 76 | 2 2 2 10 4 3 4 12 2 . 2 13 1 5 11 . 2 1 Device 35 | 1 1 . 3 . . 3 8 2 . . 8 1 1 7 . . . Storage 8 | 1 . . 1 . . . 2 . . . 2 . 1 1 . . . Processor 8 | . . . 3 . . . 2 . . . . . 1 1 . 1 . Hackware 4 | . . . . 3 1 . . . . . . . . . . . . Protection 21 | . 1 2 3 1 2 1 . . . 2 3 . 2 2 . 1 1 Artifact . | . . . . . . . . . . . . . . . . . . Weapon 36 | 2 1 1 5 6 . 6 1 . . 2 6 . 2 3 . 1 . Energy Gun 8 | . . . 4 . . . . . . . 3 . . . . 1 . Energy Cannon 4 | . . . . 4 . . . . . . . . . . . . . Ballistic Gun 10 | 2 1 1 1 1 . 3 . . . . . . . 1 . . . Ballistic Cannon 1 | . . . . . . . . . . . . . 1 . . . . Launcher 1 | . . . . 1 . . . . . . . . . . . . . Special Weapon 9 | . . . . . . 1 1 . . 2 3 . 1 1 . . . Impact Weapon . | . . . . . . . . . . . . . . . . . . Slashing Weapon 2 | . . . . . . 1 . . . . . . . 1 . . . Piercing Weapon . | . . . . . . . . . . . . . . . . . . Special Melee Weapon 1 | . . . . . . 1 . . . . . . . . . . . Unidentified Prototypes 33 | . . . 2 4 . 2 5 . . . 16 . . 1 . . 3 Parts Lost 74 | . 1 6 3 5 . . 11 1 . . . . 18 17 5 6 1 Power 10 | . . 1 . 1 . . 2 . . . . . 3 2 . 1 . Propulsion 30 | . . 2 . . . . 1 . . . . . 7 11 3 5 1 Utility 26 | . 1 2 2 1 . . 5 1 . . . . 8 4 2 . . Weapon 8 | . . 1 1 3 . . 3 . . . . . . . . . . Highest Loss Streak 11 | . 1 3 1 3 . . 9 1 . . . . 11 9 3 5 1 To Critical Strikes 2 | . . . . . . . . . . . . . 2 . . . . Average Backups 17 | 4 7 6 16 19 19 17 12 18 17 17 20 24 21 18 6 2 . Power . | . 1 1 1 . 1 . . . . . . . . . . . . Propulsion 3 | 1 1 . 1 1 1 1 1 7 7 5 5 5 2 2 . . . Utility 8 | . 4 3 11 10 8 8 3 5 4 6 8 12 11 8 1 1 . Weapon 3 | . 1 1 2 4 7 3 3 1 2 1 3 3 4 4 2 . . Tool/Special . | . . . . . . . . . . . . . . . . . . Unused Backups 145 | . 3 . 5 3 . 29 20 . . 8 35 6 25 8 . 2 1 Power 13 | . . . 1 . . 1 1 . . 1 5 . 4 . . . . Propulsion 32 | . 2 . . . . 6 3 . . 1 11 1 8 . . . . Utility 62 | . 1 . 2 3 . 14 9 . . 6 9 3 7 6 . 2 . Weapon 35 | . . . 2 . . 6 7 . . . 10 2 6 2 . . . Tool/Special 3 | . . . . . . 2 . . . . . . . . . . 1 Average Slot Usage (%) 83 | . 99 81 91 98 100 85 71 72 80 86 84 85 76 65 72 26 13 Engine 9 | . 3 . 9 10 11 11 8 10 13 13 12 7 3 . . . . Core 1 | . 10 8 . . . . . 2 . . . 4 3 5 9 . . Treads 5 | . 28 16 20 22 22 8 4 . . . . . . . . . . Leg 15 | . . . . . . . 6 26 26 26 25 26 30 23 . . . Wheel 1 | . . . . . . 6 4 . . . . . . 3 . . . Device 10 | . 4 . 10 7 2 7 16 12 20 16 13 13 8 10 17 3 . Storage 10 | . 14 14 11 11 11 11 7 13 13 10 8 12 5 9 10 3 . Processor 1 | . . . 5 7 . . 4 . . . . . 4 . . 4 5 Hackware 2 | . . . . 14 20 7 . . . . . . . . . . . Protection 9 | . 9 14 12 3 9 11 4 . . 9 14 13 8 3 4 1 1 Energy Cannon 2 | . . . . 13 22 3 1 1 . . . . . . . . . Ballistic Gun 4 | . 28 27 12 3 . 13 8 . . . . . . . . . . Slashing Weapon 3 | . . . . . . 1 . 4 6 6 6 6 5 5 5 5 5 Peak Build Rating 122 | 7 12 10 24 27 25 56 114 110 111 111 108 105 118 122 106 74 33 Average Rating 70 | 5 9 6 18 23 24 39 76 103 110 104 95 101 100 93 92 30 18 On Entrance 58 | . 7 10 5 23 25 25 56 104 110 111 105 101 100 70 106 67 20 Avg Prop Armor Cover (%) 7 | . . . . . . . 6 . . . . . 4 11 7 7 . Naked Turns . | . . . . . . . . . . . . . . . . . . Heaviest Build 206 | 14 16 16 68 61 63 70 162 175 175 202 206 188 183 121 46 38 8 Greatest Support 198 | 40 40 40 40 40 40 40 120 120 120 120 120 120 180 198 47 19 8 Greatest Overweight (x) 6 | . . . 3 1 1 3 4 1 1 1 2 1 6 2 2 3 2 Average Overweight (x) 1 | . . . . 1 1 2 2 1 1 1 1 1 . . . 1 . Largest Inventory Capacity 30 | 8 8 8 20 20 20 20 30 30 30 30 30 30 30 25 10 10 5 Average Capacity 24 | 7 8 8 17 20 20 20 22 30 30 30 30 30 28 24 10 6 5 Most Carried 30 | 7 8 8 20 20 20 20 30 30 29 30 30 30 30 25 10 10 5 Average Carried 23 | 4 7 6 16 19 19 18 20 28 28 28 28 29 26 23 9 6 4 Final Capacity 30 | 8 8 8 20 20 20 20 30 30 30 30 30 30 25 10 10 5 5 Final Carried 30 | 6 8 5 20 19 20 19 29 29 29 30 30 27 24 10 10 5 5 Scrap Suit Usage (%) 1 | . . . . . . 2 . . . . . . . . . . . Class Distribution -------------------- 54% | Hauler-Mutant 17% | Mutant 10% | Commander-Mutant 9% | Commander-Scrapper 5% | Scavenger-Mutant Dominant Class ---------------- Mutant | -10/Materials Mutant | -10/Mines Mutant | -9/Materials Scavenger-Mutant | -9/Storage Commander-Mutant | -9/Recycling Commander-Scrapper | -9/Scraptown Scrapper | -6/Factory Hauler-Mutant | -6/Lower Caves Hauler-Mutant | -6/Lower Caves Hauler-Mutant | -6/Zion Hauler-Mutant | -6/Deep Caves Hauler-Mutant | -5/Proximity Caves Hauler-Mutant | -5/Factory Mutant | -4/Factory Scavenger-Mutant | -4/Upper Caves Mutant | -4/Upper Caves Mutant | -4/Zhirov Resources | -11 -10 -10 -9 -9 -9 -9 -6 -6 -6 -6 -6 -5 -5 -4 -4 -4 -4 ----------- Run | Yrd Mat Min Mat Sto Rec Scr Fac Low Low Zio Dee Pro Fac Fac Upp Upp Zhi Matter Collected 4902 | 302 191 147 335 363 30 377 530 95 31 118 360 693 516 437 25 124 228 Remotely . | . . . . . . . . . . . . . . . . . . Salvage Created 7400 | 142 403 166 880 1156 143 95 857 392 . . 217 . 1004 1286 69 219 371 Parts 374 | 7 28 14 56 68 6 2 38 12 . . 12 . 43 58 4 18 8 Haulers Intercepted 8 | . 1 . 2 3 . . . . . . . . 1 1 . . . Recyclers Shooed 2 | . . . 1 . . . 1 . . . . . . . . . . Parts Field Recycled . | . . . . . . . . . . . . . . . . . . Retrieved Matter . | . . . . . . . . . . . . . . . . . . Parts Self-Destructed 64 | . . . . . . . . 7 . 1 . 32 . . 4 15 5 Prevented 4 | . . . . . . . . 4 . . . . . . . . . Parts Restored . | . . . . . . . . . . . . . . . . . . Kills | -11 -10 -10 -9 -9 -9 -9 -6 -6 -6 -6 -6 -5 -5 -4 -4 -4 -4 ------- Run | Yrd Mat Min Mat Sto Rec Scr Fac Low Low Zio Dee Pro Fac Fac Upp Upp Zhi Combat Hostiles Destroyed 118 | . 10 8 16 17 1 2 10 2 . . 4 . 17 13 4 14 . Melee 39 | . . . . . . . . 2 . . . . 13 13 1 10 . Guns 53 | . 10 8 16 10 . 2 7 . . . . . . . . . . Cannons 11 | . . . . 7 1 . 3 . . . . . . . . . . AOE 15 | . . . . . . . . . . . 4 . 4 . 3 4 . Classes Destroyed 21 | 2 4 . 4 . . 1 5 3 . . 1 . 1 . . . . Worker 4 | . . . 1 . . . 3 . . . . . . . . . . Builder 3 | . . . . . . . 1 . . . . . 2 . . . . Tunneler 3 | 2 . . 1 . . . . . . . . . . . . . . Hauler 8 | . 1 . 2 3 . . . . . . . . 1 1 . . . Recycler 10 | 1 . . . 3 1 . 2 . . . . . . 3 . . . Mechanic 1 | . . . . . . . 1 . . . . . . . . . . Operator 3 | . . . 1 2 . . . . . . . . . . . . . Watcher 5 | . 1 . 4 . . . . . . . . . . . . . . Swarmer 37 | . 3 6 4 3 . . 3 . . . . . . . 4 14 . Saboteur 1 | . . . . . . . 1 . . . . . . . . . . Grunt 30 | . 7 2 5 2 . . 2 2 . . . . 7 3 . . . Brawler 1 | . . . . . . . . . . . . . . 1 . . . Duelist 3 | . . . 1 1 . . . . . . . . 1 . . . . Sentry 21 | . . . 6 11 1 . 1 . . . . . . 2 . . . Hunter 8 | . . . . . . . 1 . . . . . 5 2 . . . Programmer 10 | . . . . . . . 2 . . . . . 3 5 . . . Heavy 1 | . . . . . . . . . . . . . 1 . . . . Federalist 1 | . . . . . . 1 . . . . . . . . . . . Botcube 3 | . . . . . . . . 1 . . 1 . 1 . . . . Z-Technician 1 | . . . . . . . . . . . 1 . . . . . . Z-Light 4 | . . . . . . . . . . . 4 . . . . . . Decomposer 1 | . . . . . . . . . . . . . . . 1 . . Thug 2 | . . . . . . 1 . . . . 1 . . . . . . Savage 2 | . . . . . . . . 2 . . . . . . . . . Mutant 1 | . . . . . . . . 1 . . . . . . . . . Best Kill Streak 7 | 2 3 3 3 4 1 1 7 2 . . 3 . 6 4 3 5 . Combat Bots Only 5 | . 3 3 3 4 1 1 4 2 . . 3 . 4 4 3 5 . Max Kills in Single Turn 3 | 1 2 1 2 2 1 1 2 1 . . 3 . 3 1 1 2 . Gunslinging 1 | . 1 . 1 . . . . . . . . . . . . . . Exploded 3 | . . . . . . . . . . . 3 . 1 . 1 2 . Melee 1 | . . . . . . . . 1 . . . . 1 1 1 1 . Uniques/NPCs Destroyed 1 | . . . . . . . . . . . 1 . . . . . . Z-Imprinter (-6/Deep Caves) Combat | -11 -10 -10 -9 -9 -9 -9 -6 -6 -6 -6 -6 -5 -5 -4 -4 -4 -4 -------- Run | Yrd Mat Min Mat Sto Rec Scr Fac Low Low Zio Dee Pro Fac Fac Upp Upp Zhi Hostile Shots Fired 1163 | . 67 71 78 93 4 21 151 28 . . 3 10 284 205 57 82 9 Missed 327 | . 18 16 21 26 1 5 45 8 . . 1 2 83 66 13 21 1 Hits 836 | . 49 55 57 67 3 16 106 20 . . 2 8 201 139 44 61 8 Melee 20 | . . . 1 4 . . . . . . . . 10 5 . . . Projectile 816 | . 49 55 56 63 3 16 106 20 . . 2 8 191 134 44 61 8 Critical Strikes 39 | . . 2 . 2 . 2 4 1 . . 1 . 15 11 1 . . Actively Blocked 1 | . . . . . . . . . . . . . 1 . . . . Damage Taken 14901 | . 516 508 590 1070 47 389 1820 375 . . 80 179 4393 2858 722 1258 96 Core 2751 | . 60 60 76 195 . 69 228 151 . . 15 21 725 381 147 573 50 Absorbed by Shields 220 | . . . 140 . . . 80 . . . . . . . . . . Redirected to Shielding 490 | . . . . . . . . . . . 22 . 362 57 49 . . Ignored by Resistances 106 | . . . . . . . . . . . 28 19 59 . . . . Core Remaining (%) 49 | 100 . 52 . . . 15 . . . . . 51 27 . . . . Volleys Fired 352 | 8 52 30 86 73 3 23 47 1 . . 4 . 17 . 4 4 . Largest 2 | 2 2 2 2 2 2 2 2 1 . . 1 . 1 . 1 1 . Hottest 136 | 40 40 40 112 136 136 72 122 90 . . . . 47 . . 50 . Shots Fired 643 | 16 104 54 170 137 6 46 79 2 . . 4 . 16 . 4 5 . Gun 530 | 16 104 54 170 78 . 46 62 . . . . . . . . . . Cannon 95 | . . . . 59 6 . 17 2 . . . . 11 . . . . Launcher 4 | . . . . . . . . . . . . . . . . 4 . Special 14 | . . . . . . . . . . . 4 . 5 . 4 1 . Kinetic 424 | 16 104 54 92 39 . 46 62 . . . . . 11 . . . . Thermal 201 | . . . 78 98 6 . 17 2 . . . . . . . . . Explosive 17 | . . . . . . . . . . . 3 . 5 . 4 5 . Electromagnetic . | . . . . . . . . . . . . . . . . . . Robot Hit Streak 19 | 4 18 19 11 17 6 3 5 . . . 4 . 6 . 2 1 . Robot Miss Streak 10 | 3 3 5 4 6 1 3 5 1 . . . . 4 . 3 10 . Penetration Max 2 | . . . . . . . 2 . . . . . . . . . . Secondary Targets 8 | . 1 1 2 3 . . 1 . . . . . . . . . . Max Gunslinging Chain 1 | . 1 1 1 1 . . 1 . . . . . . . . . . Shots Hit Robots 556 | 8 69 39 112 75 3 14 33 13 . . 14 . 84 64 7 15 6 Core Hits 260 | 5 27 14 47 33 2 2 27 7 . . 12 . 34 26 4 16 4 Critical Kills 3 | . . 1 . . . . 2 . . . . . . . . . . Critical Parts Destroyed 1 | . . . . . . . 1 . . . . . . . . . . Critical Strikes 19 | . . 1 2 3 . . 3 . . . 1 . 5 4 . . . Burn 5 | . . . 2 3 . . . . . . . . . . . . . Destroy 4 | . . 1 . . . . 3 . . . . . . . . . . Blast 1 | . . . . . . . . . . . . . 1 . . . . Sever 3 | . . . . . . . . . . . 1 . 2 . . . . Melee Attacks 255 | . . . . . . 1 . 13 . 2 10 4 100 82 13 23 7 Impact . | . . . . . . . . . . . . . . . . . . Slashing 254 | . . . . . . . . 13 . 2 10 4 100 82 13 23 7 Piercing . | . . . . . . . . . . . . . . . . . . Sneak Attacks 32 | . . . . . . 1 . 7 . . 10 . 8 5 1 . . Combat Hostiles . | . . . . . . . . . . . . . . . . . . Follow-up Attacks 6 | . . . . . . . . . . . . . 1 3 . 1 1 Damage Inflicted 17827 | 92 739 339 1388 1378 61 406 1408 772 . . 1650 . 4414 2654 733 1331 462 Guns 4736 | 92 739 339 1388 806 . 406 966 . . . . . . . . . . Cannons 1198 | . . . . 572 61 . 412 . . . . . 153 . . . . Explosions 2925 | . . . . . . . 30 . . . 796 . 980 . 383 736 . Melee 8654 | . . . . . . . . 772 . . 734 . 3165 2654 308 559 462 Ramming . | . . . . . . . . . . . . . . . . . . Kinetic 3568 | 92 739 339 509 364 . 406 966 . . . . . 153 . . . . Thermal 2366 | . . . 879 1014 61 . 412 . . . . . . . . . . Explosive 2895 | . . . . . . . . . . . 796 . 980 . 383 736 . Electromagnetic 30 | . . . . . . . 30 . . . . . . . . . . Impact . | . . . . . . . . . . . . . . . . . . Slashing 8968 | . . . . . . . . 772 . . 854 . 3281 2654 350 595 462 Piercing . | . . . . . . . . . . . . . . . . . . Highest Corruption 23 | . . . . . . . 6 6 6 6 . . 23 12 12 12 12 Average Corruption 8 | . . . . . . . 2 6 6 6 . . 12 9 12 12 12 Corruption Purged . | . . . . . . . . . . . . . . . . . . Corruption Blocked . | . . . . . . . . . . . . . . . . . . Effects 153 | . . . . . . . 2 36 16 13 . . 17 24 6 32 7 Message Errors 40 | . . . . . . . . 9 3 5 . . 6 7 3 6 1 Matter Fused 31 | . . . . . . . 1 5 3 4 . . 3 4 1 7 3 Heat Flow Errors 20 | . . . . . . . . 3 1 1 . . 1 7 . 7 . Energy Discharges 23 | . . . . . . . . 8 4 2 . . 1 2 . 4 2 Parts Rejected 3 | . . . . . . . . . . . . . 2 1 . . . Parts Fused 3 | . . . . . . . . 1 1 . . . . . 1 . . Data Loss (minor) 17 | . . . . . . . 1 7 3 1 . . 1 1 1 2 . Data Loss (major) 7 | . . . . . . . . 2 1 . . . 1 1 . 2 . Misfires 3 | . . . . . . . . 1 . . . . . . . 2 . Alerts 2 | . . . . . . . . . . . . . 1 1 . . . Misdirections 2 | . . . . . . . . . . . . . . . . 1 1 Weapon Failures 2 | . . . . . . . . . . . . . 1 . . 1 . Overload Shots . | . . . . . . . . . . . . . . . . . . Overflow Damage 952 | . . . . 10 . . . . . . 106 . 356 108 96 221 55 Projectiles 40 | . . . . 10 . . . . . . 20 . 10 . . . . Explosions 235 | . . . . . . . . . . . 6 . 52 . . 177 . Melee 677 | . . . . . . . . . . . 80 . 294 108 96 44 55 Knockbacks 2 | . . . . . . . . . . . . . 2 . . . . Impact . | . . . . . . . . . . . . . . . . . . Kinetic 2 | . . . . . . . . . . . . . 2 . . . . Secondary . | . . . . . . . . . . . . . . . . . . Self-Inflicted Damage 376 | . . . . . . . 39 . . . . . . . . 337 . Shots 18 | . . . . . . . 1 . . . . . . . . 17 . Rammed . | . . . . . . . . . . . . . . . . . . Targets Rammed . | . . . . . . . . . . . . . . . . . . Kicked . | . . . . . . . . . . . . . . . . . . Crushed . | . . . . . . . . . . . . . . . . . . Highest Temperature 259 | . 43 20 249 199 147 128 221 173 95 139 13 . 259 252 . 240 . Average Temperature 53 | . 12 8 64 51 79 39 58 92 95 82 13 . 108 107 . 112 . Received Heat Transfer 2541 | . 216 108 184 285 9 157 81 150 . . 54 24 895 351 9 . 18 Effects 1 | . . . . . . . . . . . . . . . . 1 . Energy Bleed 1 | . . . . . . . . . . . . . . . . 1 . Siege Activations . | . . . . . . . . . . . . . . . . . . Martial Activations . | . . . . . . . . . . . . . . . . . . Shielding Activations . | . . . . . . . . . . . . . . . . . . Robots Disrupted 2 | . . . . . . . . . . . . . 1 1 . . . Combat Hostiles 2 | . . . . . . . . . . . . . 1 1 . . . Robots Corrupted . | . . . . . . . . . . . . . . . . . . Combat Hostiles . | . . . . . . . . . . . . . . . . . . Parts Fried . | . . . . . . . . . . . . . . . . . . Impact Corruptions . | . . . . . . . . . . . . . . . . . . Robots Melted . | . . . . . . . . . . . . . . . . . . Combat Hostiles . | . . . . . . . . . . . . . . . . . . Parts Melted 22 | . . . 11 6 1 . 4 . . . . . . . . . . Heat Transferred 5032 | . . . 2183 2220 111 . 518 . . . . . . . . . . Parts Sabotaged 4 | . . . . . . . . . . . . . 4 . . . . Parts Stolen . | . . . . . . . . . . . . . . . . . . Parts Stripped . | . . . . . . . . . . . . . . . . . . Power Chain Reactions . | . . . . . . . . . . . . . . . . . . Alert | -11 -10 -10 -9 -9 -9 -9 -6 -6 -6 -6 -6 -5 -5 -4 -4 -4 -4 ------- Run | Yrd Mat Min Mat Sto Rec Scr Fac Low Low Zio Dee Pro Fac Fac Upp Upp Zhi Maximum Alert Level 5 | . . . . . . . 3 . . . . . 5 3 . . . Low Security (%) 74 | 100 100 100 100 100 100 . 56 . . . . . . . . . . Level 1 . | . . . . . . . 2 . . . . . . . . . . Level 2 10 | . . . . . . . 17 . . . . . 7 79 . . . Level 3 8 | . . . . . . . 23 . . . . . 43 20 . . . Level 4 5 | . . . . . . . . . . . . . 46 . . . . Level 5 . | . . . . . . . . . . . . . 3 . . . . High Security . | . . . . . . . . . . . . . . . . . . Max Security . | . . . . . . . . . . . . . . . . . . Peak Influence 1635 | 5 120 70 183 145 138 . 886 . . . . . 1635 798 . . . Initial 798 | . . 3 . 72 39 . . . . . . . 787 798 . . . Average 251 | 1 52 20 49 73 54 . 308 . . . . . 1093 652 . . . Influence Increases 7398 | 15 348 195 698 605 324 . 1241 130 . . . 572 2422 388 90 355 15 Destroy 0b10 Robot/C 3580 | . 200 160 420 340 80 . 580 100 . . . 320 760 260 80 280 . Destroy 0b10 Robot/NC 285 | 15 10 . 50 50 5 . 70 5 . . . 10 35 20 . . 15 Destroy Leader 768 | . 44 30 124 140 . . 104 10 . . . 40 164 72 10 30 . Allied During Kill 883 | . . . 20 9 42 . 198 15 . . . 202 397 . . . . Successful Hack 66 | . 19 5 8 10 17 . 7 . . . . . . . . . . Select Force Hacks 180 | . . . . . 180 . . . . . . . . . . . . Disable Machine 300 | . . . 15 45 . . 150 . . . . . 90 . . . . Destroy Structure 346 | . . . 1 11 . . 102 . . . . . 226 6 . . . Advance Influence 750 | . . . . . . . . . . . . . 750 . . . . Partial Spotted 30 | . . . . . . . . . . . . . . 30 . . . Lose Combat Pursuer 210 | . 75 . 60 . . . 30 . . . . . . . . 45 . Influence Decreases 7398 | 15 340 203 526 674 399 28 388 800 183 . . 511 854 1381 356 449 291 Entered New Map 1987 | . . 5 . 100 64 28 . 316 36 . . . 24 831 236 71 276 Time Decay 4410 | 15 330 175 468 524 335 . 238 474 147 . . 511 410 380 70 318 15 Search Patrol Dispatched 100 | . . . . . . . . . . . . . 100 . . . . Lost Part 673 | . 10 23 10 50 . . 110 10 . . . . 180 170 50 60 . Lost Ally 228 | . . . 48 . . . 40 . . . . . 140 . . . . Squads Dispatched 28 | . 3 . 2 1 . . 7 . . . . . 11 4 . . . Investigation 2 | . 1 . . . . . 1 . . . . . . . . . . Extermination 6 | . . . . . . . 2 . . . . . 2 2 . . . Reinforcement 15 | . 2 . 2 . . . 4 . . . . . 5 2 . . . Assault 4 | . . . . . . . . . . . . . 4 . . . . Garrison 1 | . . . . 1 . . . . . . . . . . . . . Intercept . | . . . . . . . . . . . . . . . . . . Searches Triggered 1 | . . . . . . . . . . . . . 1 . . . . Construction Impeded 1 | . . . . . . . . . . . . . 1 . . . . Haulers Reinforced 3 | . . . . . . . 1 . . . . . 1 1 . . . Active Scanning Responses . | . . . . . . . . . . . . . . . . . . Cargo Convoy Interrupts 1 | . . . . . . . 1 . . . . . . . . . . Stealth | -11 -10 -10 -9 -9 -9 -9 -6 -6 -6 -6 -6 -5 -5 -4 -4 -4 -4 --------- Run | Yrd Mat Min Mat Sto Rec Scr Fac Low Low Zio Dee Pro Fac Fac Upp Upp Zhi Distress Signals 10 | . . . 6 1 . . 2 . . . . . 1 . . . . Communications Jammed . | . . . . . . . . . . . . . . . . . . Distress Signals . | . . . . . . . . . . . . . . . . . . Times Spotted 258 | . 22 8 30 23 4 16 35 8 . . 16 13 40 18 5 17 3 Peak Tracking Total 11 | . 5 3 4 3 1 5 11 4 . . 4 5 6 4 4 5 3 Tactical Retreats 9 | . 4 . 3 . . . 1 . . . . . . . . 1 . Traps | -11 -10 -10 -9 -9 -9 -9 -6 -6 -6 -6 -6 -5 -5 -4 -4 -4 -4 ------- Run | Yrd Mat Min Mat Sto Rec Scr Fac Low Low Zio Dee Pro Fac Fac Upp Upp Zhi Traps Triggered 6 | . 1 . 2 1 . . 1 . . . . . 1 . . . . Indirectly . | . . . . . . . . . . . . . . . . . . Trap Hack Attempts . | . . . . . . . . . . . . . . . . . . Triggered . | . . . . . . . . . . . . . . . . . . Disarmed . | . . . . . . . . . . . . . . . . . . Reprogrammed . | . . . . . . . . . . . . . . . . . . Reused . | . . . . . . . . . . . . . . . . . . Traps Extracted . | . . . . . . . . . . . . . . . . . . Installed 1 | . . . . . . 1 . . . . . . . . . . . Triggered . | . . . . . . . . . . . . . . . . . . Most Traps Carried 1 | . . . . . . 1 . . . . . . . . . . . Machines | -11 -10 -10 -9 -9 -9 -9 -6 -6 -6 -6 -6 -5 -5 -4 -4 -4 -4 ---------- Run | Yrd Mat Min Mat Sto Rec Scr Fac Low Low Zio Dee Pro Fac Fac Upp Upp Zhi Machines Disabled 33 | . 1 . 1 3 . 5 10 . . 4 2 . 6 . . . 1 Max in Single Turn 2 | . 1 . . 1 . 1 2 . . 1 . . 1 . . . 1 Garrison Access 1 | . . . . 1 . . . . . . . . . . . . . Machines Repaired . | . . . . . . . . . . . . . . . . . . Machines Dismantled 4 | . . . . . . 1 . . . 3 . . . . . . . Machines Sabotaged . | . . . . . . . . . . . . . . . . . . Overloaded Fab Kills . | . . . . . . . . . . . . . . . . . . Hacking | -11 -10 -10 -9 -9 -9 -9 -6 -6 -6 -6 -6 -5 -5 -4 -4 -4 -4 --------- Run | Yrd Mat Min Mat Sto Rec Scr Fac Low Low Zio Dee Pro Fac Fac Upp Upp Zhi Machines Accessed 54 | . 6 1 8 12 12 2 2 . . . . . 3 3 . 1 4 Terminals 35 | . 5 1 6 11 6 . 2 . . . . . 3 1 . . . Fabricators . | . . . . . . . . . . . . . . . . . . Repair Stations . | . . . . . . . . . . . . . . . . . . Recycling Units 9 | . 1 . . . 6 . . . . . . . . 2 . . . Scanalyzers 2 | . . . 2 . . . . . . . . . . . . . . Garrison Access 1 | . . . . 1 . . . . . . . . . . . . . Total Hacks 128 | . 13 1 19 27 37 2 3 . . . . . 4 4 . 1 17 Successful 85 | . 11 1 7 18 26 2 1 . . . . . . 1 . 1 17 Failed 43 | . 2 . 12 9 11 . 2 . . . . . 4 3 . . . Catastrophic 5 | . . . 1 . . . . . . . . . 2 2 . . . Database Lockouts . | . . . . . . . . . . . . . . . . . . Manual 74 | . 12 1 14 21 23 . . . . 1 . . 2 . . . . Terminals 83 | . 12 1 14 26 22 . 3 . . . . . 4 1 . . . Fabricators . | . . . . . . . . . . . . . . . . . . Repair Stations . | . . . . . . . . . . . . . . . . . . Recycling Units 19 | . 1 . . . 15 . . . . . . . . 3 . . . Scanalyzers 5 | . . . 5 . . . . . . . . . . . . . . Garrison Access 1 | . . . . 1 . . . . . . . . . . . . . Terminal Hacks 39 | . 3 1 . 7 7 2 1 . . . . . . . . 1 17 Record 5 | . . . . . . . . . . . . . . . . . 5 Part Schematic 6 | . . . . . 2 . . . . . . . . . . . 4 Robot Schematic 1 | . . . . . 1 . . . . . . . . . . . . Robot Analysis 4 | . . . . . . . . . . . . . . . . . 4 Prototype ID Bank 6 | . . . . . 2 . . . . . . . . . . . 4 Open Door 5 | . . . . 3 . 1 . . . . . . . . . 1 . Branch Access Points 1 | . . . . . . . 1 . . . . . . . . . . Terminal Index 1 | . 1 . . . . . . . . . . . . . . . . Patrol Status 1 | . . . . 1 . . . . . . . . . . . . . Extermination Status 1 | . . . . . 1 . . . . . . . . . . . . Registered Components 1 | . 1 . . . . . . . . . . . . . . . . Zone Layout 6 | . 1 1 . 3 1 . . . . . . . . . . . . Proto ID Catalog 1 | . . . . . . 1 . . . . . . . . . . . Fabricator Hacks . | . . . . . . . . . . . . . . . . . . Repair Station Hacks . | . . . . . . . . . . . . . . . . . . Recycling Unit Hacks 8 | . 1 . . . 6 . . . . . . . . 1 . . . Retrieve Components 8 | . 1 . . . 6 . . . . . . . . 1 . . . Scanalyzer 2 | . . . 2 . . . . . . . . . . . . . . Retrieve Study 2 | . . . 2 . . . . . . . . . . . . . . Garrison Access Hacks 1 | . . . . 1 . . . . . . . . . . . . . Seal Access 1 | . . . . 1 . . . . . . . . . . . . . Unauthorized Hacks 35 | . 7 . 5 10 13 . . . . . . . . . . . . Terminals 29 | . 7 . 5 10 7 . . . . . . . . . . . . Assimilate 1 | . . . . 1 . . . . . . . . . . . . . Botnet 6 | . 2 . . 2 2 . . . . . . . . . . . . Operators 2 | . 1 . . 1 . . . . . . . . . . . . . Skim 20 | . 4 . 5 6 5 . . . . . . . . . . . . Fabricators . | . . . . . . . . . . . . . . . . . . Repair Stations . | . . . . . . . . . . . . . . . . . . Recycling Units 6 | . . . . . 6 . . . . . . . . . . . . Tunnel 6 | . . . . . 6 . . . . . . . . . . . . Scanalyzers . | . . . . . . . . . . . . . . . . . . Garrison Access . | . . . . . . . . . . . . . . . . . . Data Cores Recovered 2 | . . . 1 1 . . . . . . . . . . . . . Used . | . . . . . . . . . . . . . . . . . . Hacking Detections 36 | . 5 . 8 9 7 . 1 . . . . . 3 3 . . . Full Trace Events 2 | . . . . 1 1 . . . . . . . . . . . . Feedback Events . | . . . . . . . . . . . . . . . . . . Feedback Blocked . | . . . . . . . . . . . . . . . . . . Robot Schematics Acquired 3 | . . . . . 1 . . . . 2 . . . . . . . Robots Built . | . . . . . . . . . . . . . . . . . . Authchips . | . . . . . . . . . . . . . . . . . . Time . | . . . . . . . . . . . . . . . . . . Total Robot Build Rating . | . . . . . . . . . . . . . . . . . . Part Schematics Acquired 22 | . . . . . 2 . . . . 16 . . . . . . 4 Parts Built . | . . . . . . . . . . . . . . . . . . Authchips . | . . . . . . . . . . . . . . . . . . Time . | . . . . . . . . . . . . . . . . . . Total Part Build Rating . | . . . . . . . . . . . . . . . . . . Part Studies Acquired 2 | . . . 2 . . . . . . . . . . . . . . Parts Repaired . | . . . . . . . . . . . . . . . . . . Time . | . . . . . . . . . . . . . . . . . . Parts Recycled . | . . . . . . . . . . . . . . . . . . Recycled Matter . | . . . . . . . . . . . . . . . . . . Retrieved Matter . | . . . . . . . . . . . . . . . . . . Retrieved Components 34 | . 10 . . . 17 . . . . . . . . 7 . . . Parts Scanalyzed . | . . . . . . . . . . . . . . . . . . Part Schematics Acquired . | . . . . . . . . . . . . . . . . . . Parts Damaged . | . . . . . . . . . . . . . . . . . . Bothacking | -11 -10 -10 -9 -9 -9 -9 -6 -6 -6 -6 -6 -5 -5 -4 -4 -4 -4 ------------ Run | Yrd Mat Min Mat Sto Rec Scr Fac Low Low Zio Dee Pro Fac Fac Upp Upp Zhi Used RIF Installer . | . . . . . . . . . . . . . . . . . . Robots Hacked 1 | . . . . . . 1 . . . . . . . . . . . Non-combat . | . . . . . . . . . . . . . . . . . . Combat 1 | . . . . . . 1 . . . . . . . . . . . Robot Hacks Applied 1 | . . . . . . 1 . . . . . . . . . . . parse_system 1 | . . . . . . 1 . . . . . . . . . . . Relay Couplers Released . | . . . . . . . . . . . . . . . . . . Fabnet Peak Effective % . | . . . . . . . . . . . . . . . . . . Robots Rewired . | . . . . . . . . . . . . . . . . . . Allies Hacked 3 | . . . . . . . . . . . . . 3 . . . . Hacks Repelled . | . . . . . . . . . . . . . . . . . . Allies | -11 -10 -10 -9 -9 -9 -9 -6 -6 -6 -6 -6 -5 -5 -4 -4 -4 -4 -------- Run | Yrd Mat Min Mat Sto Rec Scr Fac Low Low Zio Dee Pro Fac Fac Upp Upp Zhi Total Allies 39 | . . 3 . 10 . 1 2 2 . 8 4 6 3 . . . . Largest Group 11 | . . 3 3 10 10 11 3 2 1 9 9 10 10 . . . . Highest-Rated Group 734 | . . 40 40 88 88 160 149 125 85 487 487 734 734 . . . . Highest-Rated Ally 155 | . . 16 16 16 16 72 72 85 85 96 155 155 141 . . . . Total Orders 12 | . . . . . . 2 . . 1 6 3 . . . . . . STAY 6 | . . . . . . 1 . . . 3 2 . . . . . . FOLLOW 5 | . . . . . . 1 . . . 3 1 . . . . . . GUARD 1 | . . . . . . . . . 1 . . . . . . . . Ally Attacks 563 | . . . 52 7 31 97 94 14 . . 117 43 108 . . . . Total Damage 13881 | . . . 531 47 314 1971 3499 219 . . 2238 1666 3396 . . . . Kills 126 | . . . 6 2 3 22 27 3 . . 19 18 26 . . . . Allies Corrupted . | . . . . . . . . . . . . . . . . . . Allies Melted 10 | . . . . . . 8 1 . . . 1 . . . . . . Intel | -11 -10 -10 -9 -9 -9 -9 -6 -6 -6 -6 -6 -5 -5 -4 -4 -4 -4 ------- Run | Yrd Mat Min Mat Sto Rec Scr Fac Low Low Zio Dee Pro Fac Fac Upp Upp Zhi Active Infowar (turns) 5303 | 17 238 . 1187 1185 . 4 732 382 . . . . 980 578 . . . Optics 1 | . . . 1 . . . . . . . . . . . . . . Sensors 463 | . . . . . . . 463 . . . . . . . . . . Terrain 1171 | . 1 . 132 . . . 656 382 . . . . . . . . . Structural 2 | . . . . . . 2 . . . . . . . . . . . Seismic 697 | 17 237 . . . . 2 . . . . . . . 441 . . . Decoding 1117 | . . . . . . . . . . . . . 980 137 . . . Machine Analysis 2240 | . . . 1055 1185 . . . . . . . . . . . . . Robot Analysis Total 4 | . . . . . . . . . . . . . . . . . 4 Derelict Logs Recovered 6 | . . 1 . . . . . 1 . 1 . 2 . . . 1 . Drone Launches 3 | . . . . . . . . 1 . . . 1 1 . . . . Drone Recoveries 2 | . . . . . . . . . . . 1 . 1 . . . . Decoded 0b10 Intel 82 | . . . . . . . . . . . . . 71 11 . . . Items 82 | . . . . . . . . . . . . . 71 11 . . . Exploration | -11 -10 -10 -9 -9 -9 -9 -6 -6 -6 -6 -6 -5 -5 -4 -4 -4 -4 ------------- Run | Yrd Mat Min Mat Sto Rec Scr Fac Low Low Zio Dee Pro Fac Fac Upp Upp Zhi Turns Passed 29704 | 167 861 534 2061 1744 886 4673 864 1219 578 4150 6211 2888 982 896 147 710 133 Spaces Moved 14770 | 90 289 274 879 668 317 3074 508 440 197 1919 3002 1369 486 515 208 394 141 Core 173 | 17 . . . . . . . . . . . . . . . 81 75 Treads 3384 | 73 289 274 879 668 317 876 8 . . . . . . . . . . Legs 7808 | . . . . . . . 90 440 197 1919 3002 1369 485 306 . . . Wheels 2726 | . . . . . . 2198 410 . . . . . . 118 . . . Hover 495 | . . . . . . . . . . . . . 1 91 200 137 66 Flight 184 | . . . . . . . . . . . . . . . 8 176 . Fastest Speed 26 | 50 160 160 160 200 200 100 90 190 190 190 190 190 120 26 26 80 30 Average Speed 165 | 139 160 160 191 200 200 128 117 190 190 190 190 190 126 111 48 156 75 Slowest Speed 500 | 160 160 160 280 200 200 200 190 190 190 190 260 190 500 178 180 200 125 Overloaded Moves . | . . . . . . . . . . . . . . . . . . Propulsion Burnouts . | . . . . . . . . . . . . . . . . . . Robots Hopped . | . . . . . . . . . . . . . . . . . . Potential Cave-ins 2 | . . . . . . 2 . . . . . . . . . . . Cave-ins Triggered 1 | . . . . . . . . . . . . . 1 . . . . Exploration Rate (%) 56 | 6 55 73 74 89 87 87 17 63 39 86 80 99 12 11 42 41 60 Regions Visited 17 Branch Regions 12 Pre-discovered Areas 19 | . . . 2 3 9 . . . . 2 . . . . . . 3 Known Exits Taken 4 | . . . 1 1 1 . 1 . . . . . . . . . . Unknown Exits Taken 13 | 1 1 1 . . . 1 . 1 1 1 1 1 1 1 1 1 . Scrap Searched 21 | . . 1 . . . 6 . 1 1 5 . 2 . . 2 3 . Spaces Dug 122 | . . . . 8 . 6 72 1 . . . 4 28 3 . . . Terrain Destroyed 460 | . . . . 8 . 33 104 2 . . 39 4 74 3 67 126 . Melee 9 | . . . . . . . . . . . . 4 2 3 . . . Projectile 110 | . . . . 8 . 33 54 2 . . . . 10 . 3 . . AOE 341 | . . . . . . . 50 . . . 39 . 62 . 64 126 . Terrain Rammed . | . . . . . . . . . . . . . . . . . . Walls Destroyed . | . . . . . . . . . . . . . . . . . . Machines Disabled . | . . . . . . . . . . . . . . . . . . Actions | -11 -10 -10 -9 -9 -9 -9 -6 -6 -6 -6 -6 -5 -5 -4 -4 -4 -4 --------- Run | Yrd Mat Min Mat Sto Rec Scr Fac Low Low Zio Dee Pro Fac Fac Upp Upp Zhi Total 19174 | 117 597 324 1110 942 563 3770 733 805 401 2374 3507 1653 700 735 235 449 159 Wait 2887 | . 235 16 76 146 238 543 89 335 204 382 296 255 35 35 1 1 . Move 14753 | 89 288 273 878 667 316 3073 507 439 196 1918 3001 1368 485 514 207 393 141 Hop . | . . . . . . . . . . . . . . . . . . Pick Up 299 | 13 8 1 28 12 2 44 37 4 1 19 68 7 22 25 1 6 1 Fast Attach 77 | . 1 . 12 5 . 3 6 . . . 24 1 2 10 2 7 4 Attach 122 | 7 1 4 6 6 1 3 20 6 . 5 6 3 25 25 1 2 1 Detach 29 | . . . 1 1 . 3 5 3 . 1 2 2 3 5 2 1 . Swap 67 | . 4 . 6 15 2 11 3 1 . 3 6 4 2 10 . . . Drop 288 | . 8 . 17 17 1 53 19 3 . 17 90 9 4 31 4 13 2 Fire 352 | 8 52 30 86 73 3 23 47 1 . . 4 . 17 . 4 4 . Melee 249 | . . . . . . 1 . 13 . 2 10 4 99 79 13 22 6 Ram . | . . . . . . . . . . . . . . . . . . Kick . | . . . . . . . . . . . . . . . . . . Crush . | . . . . . . . . . . . . . . . . . . Escape Stasis 9 | . . . . . . . . . . . . . 5 . . . 4 Rewire 1 | . . . . . . . . . . . . . 1 . . . . Trap 1 | . . . . . . 1 . . . . . . . . . . . Miscellaneous 40 | . . . . . . 12 . . . 27 . . . 1 . . . Route ------- -11/Scrapyard -10/Materials (discovered 2 exits: *Min x2) -10/Mines (discovered 2 exits: *Mat / [*Sub]) -9/Materials (discovered 5 exits: *Mat x3 / [*Min] / *Sto) -9/Storage (discovered 2 exits: Mat / *Rec) -9/Recycling (discovered 2 exits: *Fac / *Scr) -9/Scraptown (discovered 2 exits: *Fac x2) -6/Factory (discovered 4 exits: *Low x2 / Ext x2) -6/Lower Caves -6/Lower Caves -6/Zion (discovered 2 exits: [*Dee] / [*Pro]) -6/Deep Caves -5/Proximity Caves -5/Factory -4/Factory -4/Upper Caves -4/Upper Caves -4/Zhirov (discovered 1 exit: [*Pro]) History --------- Turn | Location | Event 5 | -11/Scrapyard | Discovered new exit (range 16) 168 | -11/Scrapyard | Entered Materials 305 | -10/Materials | Build established: Mutant 420 | -10/Materials | Discovered new exit (range 14) 474 | -10/Materials | Discovered new exit (range 10) 1029 | -10/Materials | Entered Mines 1124 | -10/Mines | Met a Derelict bent on vengeance 1161 | -10/Mines | Discovered new exit (range 9) 1320 | -10/Mines | Learned 2 Materials zone layouts 1376 | -10/Mines | Lost 3 parts (1p1n1u) 1422 | -10/Mines | Assisted by bots powering up and referring to "LRC-V3" 1524 | -10/Mines | Discovered new exit (range 15) 1563 | -10/Mines | Entered Materials 1563 | -9/Materials | Accompanied by 3 allies 1563 | -9/Materials | Evolved 2 slots: Utility x2 1564 | -9/Materials | Identified exit to Storage 1776 | -9/Materials | Discovered new exit (range 8) 2167 | -9/Materials | Discovered new exit (range 10) 2212 | -9/Materials | Build established: Scavenger-Mutant 2529 | -9/Materials | Discovered new exit (range 16) 2678 | -9/Materials | Learned location of 1 exit from Recycling 2716 | -9/Materials | Learned location of Recycling (-9) 2745 | -9/Materials | Identified exit to Materials 2765 | -9/Materials | Learned Storage emergency access door positions 2776 | -9/Materials | Learned Storage security intel 2796 | -9/Materials | Loaded intel: 16 trap records 2828 | -9/Materials | Learned location of Zion (-6) 2932 | -9/Materials | Build established: Mutant 3624 | -9/Materials | Entered Storage 4113 | -9/Storage | Core integrity fell below 50% 4235 | -9/Storage | Lost 3 parts (1u2w) 4259 | -9/Storage | Build established: Scavenger-Mutant 4752 | -9/Storage | Garrison activated, responded to threat 5039 | -9/Storage | Assisted by bots powering up and referring to "LRC-V3" 5054 | -9/Storage | Learned 4 Recycling zone layouts 5056 | -9/Storage | Found Prototype Launcher 5073 | -9/Storage | Identified Scatter Rocket Array 5194 | -9/Storage | Identified exit to Recycling 5195 | -9/Storage | Learned Storage security intel 5205 | -9/Storage | Learned location of 1 exit from Recycling 5227 | -9/Storage | Learned location of 2 exits from Materials 5342 | -9/Storage | Build established: Commander-Mutant 5344 | -9/Storage | Used back door to open Recycling access 5368 | -9/Storage | Entered Recycling 5368 | -9/Recycling | Accompanied by 10 allies 5369 | -9/Recycling | Identified exit to Factory 5369 | -9/Recycling | Identified exit to Scraptown 5949 | -9/Recycling | Learned location of Storage (-9) 6043 | -9/Recycling | Learned Storage security intel 6054 | -9/Recycling | Learned Materials trap positions 6067 | -9/Recycling | Learned Materials security intel 6087 | -9/Recycling | Learned Storage security intel 6116 | -9/Recycling | Learned location of 1 exit from Storage 6144 | -9/Recycling | Scanned before Scraplab entrance 6198 | -9/Recycling | Entered Scraplab 6254 | -9/Recycling | Entered Scraptown 6254 | -9/Scraptown | Accompanied by 10 allies 6450 | -9/Scraptown | Visited Symbiants 6463 | -9/Scraptown | Heard Great Nut preacher, LISTEN AND RECITE! 6503 | -9/Scraptown | Visited Fellowship of the Rings 6529 | -9/Scraptown | Visited Cave Peace 6559 | -9/Scraptown | Visited SPCMW 6577 | -9/Scraptown | Visited Supply Room 6658 | -9/Scraptown | Visited Cyclists 6682 | -9/Scraptown | Visited The Evicted 6792 | -9/Scraptown | Discovered new exit (range 11) 7316 | -9/Scraptown | Visited UFD Registry 7316 | -9/Scraptown | Registered with UFD as "Armorplate" 7364 | -9/Scraptown | Visited Botcube Research 7392 | -9/Scraptown | Visited Scrapoid Pod Storage 7420 | -9/Scraptown | Visited Scrap Suit Storage 7444 | -9/Scraptown | Visited Sword Containment 7464 | -9/Scraptown | Found Prototype Slashing Weapon 7485 | -9/Scraptown | Identified Companion Sword 7511 | -9/Scraptown | Visited Infowarlord's Domain 7537 | -9/Scraptown | Visited Observation Area 7555 | -9/Scraptown | Visited Modified Component R&D 7621 | -9/Scraptown | Visited DA-N13 Charitable Foundation 7639 | -9/Scraptown | Found DCF Scrap (28 items) 7691 | -9/Scraptown | Visited Junk Repository 7741 | -9/Scraptown | Visited Science Guys 7938 | -9/Scraptown | Found Scrap Suit 8235 | -9/Scraptown | Discovered new exit (range 3) 8240 | -9/Scraptown | Warned about trapping Scraptown 8316 | -9/Scraptown | Build established: Commander-Scrapper 9023 | -9/Scraptown | Found Lrg. Botcube 9592 | -9/Scraptown | Found Exp. Terrain Scanner 9685 | -9/Scraptown | Lrg. Botcube activated 9717 | -9/Scraptown | Lrg. Botcube completed mutation into wheeled form, armed with 4 cannons. 9775 | -9/Scraptown | Found Scrap Suit 9777 | -9/Scraptown | Found Scrap Suit 9998 | -9/Scraptown | Met Optimus 9998 | -9/Scraptown | Accepted into 0bPrime 10398 | -9/Scraptown | Civil war broke out across Scraptown 10403 | -9/Scraptown | Found PL-3XN's Ring of Power 10462 | -9/Scraptown | Lost 4 allies 10534 | -9/Scraptown | Found Botcube 10536 | -9/Scraptown | Found Botcube 10540 | -9/Scraptown | Found Lrg. Botcube 10543 | -9/Scraptown | Found Botcube 10547 | -9/Scraptown | Found Lrg. Botcube 10587 | -9/Scraptown | Found Scrapoid Pod 10591 | -9/Scraptown | Found Scrapoid Pod 10682 | -9/Scraptown | Lost 4 allies 10690 | -9/Scraptown | Found Master Drone Bay 10798 | -9/Scraptown | Lost 3 allies 10855 | -9/Scraptown | Lost 4 allies 10881 | -9/Scraptown | Core integrity fell below 20% 10904 | -9/Scraptown | Lost 6 allies 10927 | -9/Scraptown | Entered Factory 10927 | -6/Factory | Accompanied by 1 ally 10927 | -6/Factory | Evolved 6 slots: Power x1, Propulsion x2, Utility x3 11152 | -6/Factory | Botcube activated 11160 | -6/Factory | Botcube completed mutation into legged form, armed with 2 guns. 11168 | -6/Factory | Build established: Scrapper 11298 | -6/Factory | Identified exit to Lower Caves 11298 | -6/Factory | Identified exit to Extension 11391 | -6/Factory | Botcube activated 11401 | -6/Factory | Botcube completed mutation into legged form, armed with 1 gun. 11498 | -6/Factory | Cargo convoy interrupted 11547 | -6/Factory | Found PL-3XN's Ring of Power 11563 | -6/Factory | Lost 9 parts (2p1n4u2w) 11703 | -6/Factory | Found Botcube 11791 | -6/Factory | Entered Lower Caves 11839 | -6/Lower Caves | Build established: Hauler-Mutant 11929 | -6/Lower Caves | Encountered a Warlord checkpoint 12170 | -6/Lower Caves | Botcube activated 12178 | -6/Lower Caves | Botcube completed mutation into legged form, armed with 1 gun. 12225 | -6/Lower Caves | Murdered 3 allies 12274 | -6/Lower Caves | Spotted B-75 Beast 12279 | -6/Lower Caves | Master Drone dominated B-75 Beast. 12435 | -6/Lower Caves | Learned Factory emergency access door positions 12698 | -6/Lower Caves | Murdered *G-67 12698 | -6/Lower Caves | Destroyed *G-67 12702 | -6/Lower Caves | Found Botcube 12940 | -6/Lower Caves | Discovered new exit (range 15) 13010 | -6/Lower Caves | Entered another Lower Caves area 13010 | -6/Lower Caves | Accompanied by 1 ally 13535 | -6/Lower Caves | Discovered new exit (range 15) 13563 | -6/Lower Caves | Encountered a Warlord checkpoint 13588 | -6/Lower Caves | Entered Zion 13588 | -6/Zion | Accompanied by 1 ally 13773 | -6/Zion | Given A8's code to call for help 13830 | -6/Zion | Discovered new exit (range 9) 14043 | -6/Zion | System corruption cleaned by Quarantine Array 14431 | -6/Zion | Turned away by Imprinter 15545 | -6/Zion | Learned Factory machine intel 15717 | -6/Zion | Discovered new exit (range 3) 15717 | -6/Zion | Saw the warning signs outside the Deep Caves entrance 15835 | -6/Zion | Found Relay Coupler [Programmer] 15838 | -6/Zion | Found Relay Coupler [Programmer] 17130 | -6/Zion | Botcube activated 17148 | -6/Zion | Botcube completed mutation into treaded form, armed with 1 gun, 1 cannon. 17230 | -6/Zion | Gained Derelict followers 17332 | -6/Zion | Found Prototype Special Weapon 17335 | -6/Zion | Found Prototype Special Weapon 17338 | -6/Zion | Found Prototype Special Weapon 17341 | -6/Zion | Found Prototype Special Weapon 17523 | -6/Zion | Found Relay Coupler [Programmer] 17529 | -6/Zion | Found Relay Coupler [Programmer] 17622 | -6/Zion | Enhanced Grunt warped into view, answering call for help 17622 | -6/Zion | Enhanced Grunt warped into view, answering call for help 17738 | -6/Zion | Entered Deep Caves 17738 | -6/Deep Caves | Accompanied by 9 allies 18096 | -6/Deep Caves | Attacked by Z-Imprinter 18111 | -6/Deep Caves | Attached CPS modules to Z-Imprinter. 18128 | -6/Deep Caves | Allies destroyed Z-Imprinter 18129 | -6/Deep Caves | Identified RU-N14's Throwing Claymores (x4) 18155 | -6/Deep Caves | Found Prototype Protection 18155 | -6/Deep Caves | Identified Zio. Weapon Casing 18156 | -6/Deep Caves | Lost 4 allies 18172 | -6/Deep Caves | Found Prototype Device 18172 | -6/Deep Caves | Identified Zio. Metafield Generator 18471 | -6/Deep Caves | Murdered *Zio. Scrap / Cube Storage 18471 | -6/Deep Caves | Destroyed *Zio. Scrap / Cube Storage 18769 | -6/Deep Caves | Found Prototype Protection 18769 | -6/Deep Caves | Identified Zio. Heavy Carapace 18874 | -6/Deep Caves | Z-Facility disabled 19989 | -6/Deep Caves | Botcube activated 20011 | -6/Deep Caves | Botcube completed mutation into treaded form, armed with 2 cannons. 20817 | -6/Deep Caves | Found Zio. Weapon Casing 21890 | -6/Deep Caves | Found Zio. Weapon Casing 22362 | -6/Deep Caves | Found Prototype Device 22363 | -6/Deep Caves | Identified Exp. Thermal Shield 22973 | -6/Deep Caves | Botcube activated 22989 | -6/Deep Caves | Botcube completed mutation into legged form, armed with 2 guns. 23142 | -6/Deep Caves | Lrg. Botcube activated 23180 | -6/Deep Caves | Lrg. Botcube completed mutation into hovering form, armed with 4 guns. 23195 | -6/Deep Caves | Lrg. Botcube activated 23227 | -6/Deep Caves | Lrg. Botcube completed mutation into hovering form, armed with 4 guns. 23911 | -6/Deep Caves | Discovered new exit (range 6) 23949 | -6/Deep Caves | Entered Proximity Caves 23949 | -5/Proximity Caves | Accompanied by 4 allies 24361 | -5/Proximity Caves | Spotter reported a threat 24398 | -5/Proximity Caves | Spotted B-75 Beast 24403 | -5/Proximity Caves | Master Drone dominated B-75 Beast. 24409 | -5/Proximity Caves | Spotter reported a threat 24414 | -5/Proximity Caves | Spotter reported a threat 24521 | -5/Proximity Caves | Learned Factory terminal intel 24543 | -5/Proximity Caves | Spotter reported a threat 24598 | -5/Proximity Caves | Spotter reported a threat 25823 | -5/Proximity Caves | Discovered new exit (range 10) 26512 | -5/Proximity Caves | Scrapoid Pod released 05P05-D (x5) 26837 | -5/Proximity Caves | Entered Factory 26837 | -5/Factory | Accompanied by 10 allies 26837 | -5/Factory | Evolved 2 slots: Propulsion x2 26839 | -5/Factory | Loaded intel: 282 machine locations 26840 | -5/Factory | Loaded intel: 26 terminal locations 27137 | -5/Factory | Search patrols dispatched 27249 | -5/Factory | Master Drone dominated S-27 Virus. 27437 | -5/Factory | First assault squad dispatched 27500 | -5/Factory | Discovered new exit (range 9) 27520 | -5/Factory | Lost 3 parts (2p1u) 27530 | -5/Factory | Murdered *Irresistible 27530 | -5/Factory | Destroyed *Irresistible 27534 | -5/Factory | Found Lrg. Botcube 27595 | -5/Factory | Crushed by falling debris 27595 | -5/Factory | System corruption reached 10% 27638 | -5/Factory | Master Drone dominated L-41 Fighter. 27648 | -5/Factory | Master Drone dominated G-50 Soldier. 27650 | -5/Factory | Core integrity fell below 50% 27707 | -5/Factory | Lost 11 parts (1p6n4u) 27768 | -5/Factory | Lost 3 parts (1n2u) 27819 | -5/Factory | Entered another Factory area 27819 | -4/Factory | Evolved 2 slots: Propulsion x2 27912 | -4/Factory | Build established: Mutant 28027 | -4/Factory | Lost 9 parts (2p5n2u) 28266 | -4/Factory | Discovered new exit (range 3) 28291 | -4/Factory | System corruption reached 10% 28441 | -4/Factory | Found Prototype Processor 28585 | -4/Factory | Lost 6 parts (4n2u) 28657 | -4/Factory | Identified Exp. Targeting Computer 28715 | -4/Factory | Entered Upper Caves 28738 | -4/Upper Caves | Encountered a Warlord checkpoint 28812 | -4/Upper Caves | Lost 3 parts (2n1u) 28839 | -4/Upper Caves | Discovered new exit (range 8) 28847 | -4/Upper Caves | Attracted the attention of an 0b10 checkpoint 28862 | -4/Upper Caves | Entered another Upper Caves area 28871 | -4/Upper Caves | Core integrity fell below 50% 28907 | -4/Upper Caves | Lost 5 parts (1p3n1u) 29067 | -4/Upper Caves | Build established: Scavenger-Mutant 29378 | -4/Upper Caves | Build established: Mutant 29477 | -4/Upper Caves | Learned 4 Research zone layouts 29497 | -4/Upper Caves | Core integrity fell below 20% 29505 | -4/Upper Caves | Discovered new exit (range 14) 29572 | -4/Upper Caves | Entered Zhirov 29573 | -4/Zhirov | Discovered new exit (range 3) 29591 | -4/Zhirov | Met Zhirov 29609 | -4/Zhirov | Learned location of Command (-1) 29619 | -4/Zhirov | Zhirov requested help retrieving the SGEMP Prototype 29634 | -4/Zhirov | Found Alien Artifact 29634 | -4/Zhirov | Identified Integrated Reactor 29634 | -4/Zhirov | Installed Integrated Reactor, increased core energy generation (+10) 29689 | -4/Zhirov | Found Alien Artifact 29698 | -4/Zhirov | Cloak Generator disabled 29698 | -4/Zhirov | Attacked by Zhirov 29705 | -4/Zhirov | Destroyed by Perun with Improved Arc Thrower Last Messages --------------- 29671_ Matter Neutralizer fries itself beyond repair. 29673_ Hardcell Cannon fries itself beyond repair. 29673_ Acquired Prototype Protection. 29673_ Identified Exp. Weapon Shielding. 29678_ System corrupted: Matter fused (-7). 29678_ Acquired Prototype Reactor. 29678_ Identified Hvy. Antimatter Reactor. 29679_ Dropped Hvy. Antimatter Reactor. 29689_ Acquired Alien Artifact. 29698_ Cloak Generator disabled. 29699_ System corrupted: Energy discharge (-26). 29701_ Held in stasis. Zhirov: What have you done! Without an active cloak all this specialized equipment will attract attention in no time! Perun, Svarog, deal with this and buy us some time to salvage what we can. 29703_ Airjet destroyed. Map ----- +----------------------------------------------------+ | | | | | | | | | | | | | | | | | | | | | ??????????????????????????????????????????? | | ??????????????????????????????????????????? | | ??????????????????????????????????????????? | | ??????????????????????????????????????????? | | ??????????????????????????????????????????? | | ??????????????????????????????????????????? | | ??????????????????????????????????????????? | | ?????????????????????"????????????????????? | | ????????????????????"""???????????????????? | | ????????????????????#""#??????????????????? | | ???????????????????##""##?????????????????? | | ?????????????###??##""""##????????????????? | | ?????######### ##?#"""" "#??????#####?????? | | ?????#""""""" #?# """" #?????## ###???? | | ####?#" " ### ##?#### < ##??? | | "X"#?#" 1P @### #??? | | X#?#" ] #??? | | "#### #??? | | S ###### ###??? | | ##+#### ### ##????#######????? | | ?# #?#"" #?# """" #????????????????? | | ?# #?##" #### ##?#""""""#????????????????? | | ?+ #??#" #??###??##""""##????????????????? | | ?###??## #????????##""##?????????????????? | | ???????# #?????????#""#??????????????????? | | ???????# #???????????????????????????????? | | ######## ########????????????????????????? | | #"X # # """"#????????????????????????? | | #" # # """"#????????????????????????? | | #"" # # """#????????????????????????? | | #"" + + ""#????????????????????????? | | #"" ""# # """#????????????????????????? | | #"""""# # """"#????????????????????????? | | #"""""# #X""""#????????????????????????? | | ########++########????????????????????????? | | #" """"#????????????????????????? | | #"" % "#????????????????????????? | | #" " " " " "#????????????????????????? | | # "| "% " "* "#????????????????????????? | | # "%!" " " "#????????????????????????? | +----------------------------------------------------+ Best States ------------- Heat Dissipation 133 Energy Generation 34 Energy Capacity 1465 Matter Stores 300 Matter Capacity 300 Sight Range 16 Robot Scan Range 15 Terrain Scan Range 30 Terrain Scan Density 135 Armor Coverage 1425 Resistance: KI 30 Resistance: TH 30 Core Shielding 30 Weapon Shielding 100 Phase Shifting 5 Evasion (%) 82 Core Analysis 6 Recoil Reduction 2 Offensive Hacking 30 Authchip Count 1 Item Schematics ----------------- Lgt. EM Pulse Cannon | -9/Recycling | Hacked EMP Blaster | -9/Recycling | Hacked Adv. Sensor Array | -6/Zion | Archive Imp. Kinecellerator | -6/Zion | Archive Remote Force Field | -6/Zion | Archive Arm. Leg | -6/Zion | Archive Point Defense System | -6/Zion | Archive Flexi-carbon Leg | -6/Zion | Archive Adv. Thermal Generator | -6/Zion | Archive Hvy. Phase Cannon | -6/Zion | Archive Imp. Heavy Armor Plating | -6/Zion | Archive Imp. Actuator Array | -6/Zion | Archive Disruptor Cannon | -6/Zion | Archive Phase Shifter | -6/Zion | Archive Arm. Medium Treads | -6/Zion | Archive Imp. Trap Scanner | -6/Zion | Archive Hardcell Cannon | -6/Zion | Archive Lrn. Phase Cannon | -6/Zion | Archive Assault Drone Bay | -4/Zhirov | Free Exp. Heat Sink | -4/Zhirov | Free Exp. Optical Array | -4/Zhirov | Free Imp. Arc Thrower | -4/Zhirov | Free Robot Schematics ------------------ O-16 Technician | -9/Recycling | Hacked K-01 Serf | -6/Zion | Archive R-06 Scavenger | -6/Zion | Archive Fabricated ------------ Nothing Repaired ---------- Nothing Studied --------- Lgt. Treads | -9/Materials | Hacked Lgt. Assault Rifle | -9/Materials | Hacked Alien Tech Used ----------------- Integrated Reactor Achievements -------------- Metal Spider Challenges ------------ None Game ------ Seed GuidedScatterMatter Manual? 0 Play Time 03:29:29 Cumulative 559.6 hours Start 2025.11.26 @ 23:23:50 End 2025.11.27 @ 04:33:24 Sessions 3 Manual Loads 0 Difficulty Rogue Special Mode None Game No. 728 Rogue 728 Adventurer 0 Explorer 0 Win Type - Total 19 Types 8/1/2/2/2/0/2/2/0/0 Lore% 93 Gallery% 87 Achievement% 72 Wizard Run 0 Options --------- Layout 2 ASCII 0 Keyboard 0 Movement Mouse Keybinds 0 Fullscreen 1 Font 24/Terminus Map View 50x44 Zoom Use 0% Tactical HUD 1 Map Filters NONE Filters NONE Steam 1 RUN: e38cddc0-58d7-48bf-a89a-b339ee66097b